bitfinex/quotes_BTCUSD_20250124
["timestamp","ask_amount","ask_price","bid_price","bid_amount"]
[1737700929890,0.00639644,104710.0,104700.0,0.59299364]
[1737700931413,0.00639644,104710.0,104700.0,0.50734822]
[1737700931617,0.00639644,104710.0,104700.0,0.53034822]
[1737700934623,0.00639644,104710.0,104700.0,0.54034822]
[1737700935223,0.00044676,104710.0,104700.0,0.54034822]
[1737700935443,0.00636019,104710.0,104700.0,0.56034822]
[1737700937492,0.00044676,104710.0,104700.0,0.56034822]
[1737700937727,0.00636893,104710.0,104700.0,0.56034822]
[1737700940063,0.0015107,104710.0,104700.0,0.56034822]
[1737700940295,0.00029842,104720.0,104710.0,0.407001]
[1737700940495,4.2e-07,104720.0,104710.0,0.88146286]
[1737700940934,4.2e-07,104720.0,104710.0,1.42156286]
[1737700942124,4.2e-07,104720.0,104710.0,1.42556286]
[1737700942586,4.2e-07,104720.0,104710.0,1.43156286]
[1737700942819,4.2e-07,104720.0,104710.0,1.31306186]
[1737700943042,4.2e-07,104720.0,104710.0,1.40656286]
[1737700943277,4.2e-07,104720.0,104710.0,1.40856286]
[1737700943747,4.2e-07,104720.0,104710.0,1.39856286]
[1737700944230,4.2e-07,104720.0,104710.0,1.39956286]
[1737700944630,4.2e-07,104720.0,104710.0,1.41896765]
[1737700944961,4.2e-07,104720.0,104710.0,1.45158329]
[1737700945647,4.2e-07,104720.0,104710.0,1.45558329]
[1737700947778,0.00495179,104720.0,104710.0,1.45558329]
[1737700948002,4.2e-07,104720.0,104710.0,1.45558329]
[1737700948224,0.00495471,104720.0,104710.0,1.55598329]
[1737700948472,4.2e-07,104720.0,104710.0,1.55598329]
[1737700949231,0.00499105,104720.0,104710.0,1.55598329]
[1737700949429,4.2e-07,104720.0,104710.0,1.55598329]
[1737700949642,0.00499105,104720.0,104710.0,1.55598329]
[1737700949847,4.2e-07,104720.0,104710.0,1.55598329]
[1737700950069,0.00499239,104720.0,104710.0,1.55598329]
[1737700950283,0.00500022,104720.0,104710.0,1.55598329]
[1737700951521,2.2e-07,104720.0,104710.0,1.59416729]
[1737700951738,0.00416613,104720.0,104710.0,1.59416729]
[1737700951939,0.009478,104750.0,104720.0,0.03]
[1737700952144,0.00952744,104750.0,104740.0,0.245474]
[1737700952362,0.00952744,104750.0,104740.0,0.44902129]
[1737700952581,0.00952744,104750.0,104740.0,0.45902129]
[1737700953319,0.00952744,104750.0,104740.0,0.49266938]
[1737700953533,4.4e-07,104750.0,104740.0,0.89306938]
[1737700953749,0.00029842,104770.0,104760.0,0.351456]
[1737700953967,0.00034784,104770.0,104760.0,0.44880329]
[1737700954631,0.00034784,104770.0,104760.0,0.49740329]
[1737700955770,0.00034784,104770.0,104760.0,0.50340329]
[1737700957202,8.4e-07,104770.0,104760.0,0.96340173]
[1737700957401,0.00029842,104790.0,104780.0,0.325538]
[1737700957659,0.00079272,104790.0,104780.0,0.45724529]
[1737700957869,0.00079272,104790.0,104780.0,0.46724529]
[1737700958647,0.00079272,104790.0,104780.0,0.46824529]
[1737700958865,0.00029862,104810.0,104800.0,0.245419]
[1737700959085,8.2e-07,104810.0,104800.0,0.47586629]
[1737700959303,8.2e-07,104810.0,104800.0,0.50542603]
[1737700959534,8.2e-07,104810.0,104800.0,0.47586629]
[1737700960519,8.2e-07,104810.0,104800.0,0.49500025]
[1737700960780,8.2e-07,104810.0,104800.0,0.47986629]
[1737700960999,0.00029842,104820.0,104810.0,0.27841]
[1737700961215,0.00029842,104820.0,104810.0,0.37575729]
[1737700961442,0.00029842,104820.0,104810.0,0.36575729]
[1737700962298,0.00029842,104820.0,104810.0,0.36975729]
[1737700962953,0.00029842,104820.0,104810.0,0.37075729]
[1737700963741,0.00029842,104820.0,104810.0,0.38976537]
[1737700964794,0.00029842,104820.0,104810.0,0.38476537]
[1737700965086,0.00029842,104820.0,104810.0,0.38976537]
[1737700965755,0.00029842,104820.0,104810.0,0.40108537]
[1737700968109,0.00029842,104820.0,104810.0,0.41068134]
[1737700972206,0.00029842,104820.0,104810.0,0.73804708]
[1737700972781,0.00029842,104820.0,104810.0,0.71404708]
[1737700973007,0.00029842,104820.0,104810.0,0.71004708]
[1737700973220,0.00029842,104820.0,104810.0,0.71504708]
[1737700974840,0.00029842,104820.0,104810.0,0.71518898]
[1737700974973,0.00029842,104820.0,104810.0,0.73818898]
[1737700976018,0.00029842,104820.0,104810.0,0.41082324]
[1737700976236,0.00029842,104820.0,104810.0,0.40982324]
[1737700976650,0.00029842,104820.0,104810.0,0.37250324]
[1737700976899,0.00029842,104820.0,104810.0,0.38782324]
[1737700977105,0.00029842,104820.0,104810.0,0.37650324]
[1737700977547,0.00029842,104820.0,104810.0,0.49080324]
[1737700977959,0.00029842,104820.0,104810.0,0.48980324]
[1737700978091,0.00029842,104820.0,104810.0,0.49080324]
[1737700978560,0.00029842,104820.0,104810.0,0.48980324]
[1737700978794,0.00029842,104820.0,104810.0,0.48580324]
[1737700978994,0.00029842,104820.0,104810.0,0.48680324]
[1737700979188,0.00029842,104820.0,104810.0,0.49080324]
[1737700979384,0.00029842,104820.0,104810.0,0.48680324]
[1737700979687,0.00029842,104820.0,104810.0,0.49080324]
[1737700980561,0.00029842,104820.0,104810.0,0.45780324]
[1737700986049,0.00029842,104820.0,104810.0,0.49080324]
[1737700986294,0.00029842,104820.0,104810.0,0.52040386]
[1737700987751,0.00029842,104820.0,104810.0,0.51040386]
[1737700987958,0.00029842,104820.0,104810.0,0.48740386]
[1737700988801,0.00029842,104820.0,104810.0,0.48640386]
[1737700989018,0.00029842,104820.0,104810.0,0.48240386]
[1737700989229,0.00029842,104820.0,104810.0,0.48640386]
[1737700990269,0.00029842,104820.0,104810.0,0.48740386]
[1737700990751,0.00029842,104820.0,104810.0,0.48640386]
[1737700990960,0.00029842,104820.0,104810.0,0.48340386]
[1737700991173,0.00029842,104820.0,104810.0,0.40210386]
[1737700991377,0.00029842,104820.0,104810.0,0.38709578]
[1737700991940,0.00029842,104820.0,104810.0,0.47207136]
[1737700994554,0.00029842,104820.0,104810.0,0.32207136]
[1737700995916,0.00029842,104820.0,104810.0,0.42717136]
[1737700996118,0.00029842,104820.0,104810.0,0.43717136]
[1737700998340,0.00029842,104820.0,104810.0,0.35219578]
[1737700999411,0.00029842,104820.0,104810.0,0.34219578]
[1737701000086,0.00029842,104820.0,104810.0,0.31919578]
[1737701000288,0.00029842,104820.0,104810.0,0.23709578]
[1737701003991,0.00029842,104820.0,104810.0,0.33819578]
[1737701004192,0.00029842,104820.0,104810.0,0.39789578]
[1737701051326,0.00029842,104820.0,104810.0,0.39755797]
[1737701055036,0.00029842,104820.0,104810.0,0.54755797]
[1737701059135,0.07529842,104820.0,104810.0,0.38675797]
[1737701060389,0.00029842,104820.0,104810.0,0.38675797]
[1737701060659,0.00029842,104820.0,104810.0,0.40975797]
[1737701063624,0.00029842,104820.0,104810.0,0.38675797]
[1737701064803,0.00029842,104820.0,104810.0,0.38575797]
[1737701065058,0.00029842,104820.0,104810.0,0.38175797]
[1737701065289,0.00029842,104820.0,104810.0,0.38275797]
[1737701065584,0.13019842,104820.0,104810.0,0.38175797]
[1737701066035,0.13019842,104820.0,104810.0,0.38675797]
[1737701068867,0.00029842,104820.0,104810.0,0.38675797]
[1737701075128,0.00029842,104820.0,104810.0,0.79492371]
[1737701077445,0.00029842,104820.0,104810.0,0.46755797]
[1737701082039,0.00029842,104820.0,104810.0,0.79492371]
[1737701086616,0.00029842,104820.0,104810.0,0.80492371]
[1737701086823,0.00029842,104820.0,104810.0,1.12792371]
[1737701088942,0.00017357,104830.0,104820.0,0.245401]
[1737701089166,0.00017357,104830.0,104820.0,0.37234891]
[1737701089397,0.07707357,104830.0,104820.0,0.37234891]
[1737701089708,0.12327357,104830.0,104820.0,0.37234891]
[1737701089933,0.12327357,104830.0,104820.0,0.37634891]
[1737701090133,0.12327357,104830.0,104820.0,0.37734891]
[1737701097223,0.1232734,104830.0,104820.0,0.37734891]
[1737701100704,0.0001734,104830.0,104820.0,0.37734891]
[1737701101222,0.0001734,104830.0,104820.0,0.45924891]
[1737701101613,0.0001734,104830.0,104820.0,0.50834891]
[1737701103187,0.05548675,104840.0,104830.0,0.095392]
[1737701103384,0.05548675,104840.0,104830.0,0.37233991]
[1737701104664,0.05548675,104840.0,104830.0,0.37333991]
[1737701105418,0.05548675,104840.0,104830.0,0.37733991]
[1737701106073,0.05548675,104840.0,104830.0,0.37833991]
[1737701107758,0.05548675,104840.0,104830.0,0.45783991]
[1737701107974,0.05548675,104840.0,104830.0,0.79457307]
[1737701108194,0.05548675,104840.0,104830.0,0.84147307]
[1737701108869,0.05548675,104840.0,104830.0,0.84047307]
[1737701109301,0.05548675,104840.0,104830.0,0.84147307]
[1737701109711,0.05548675,104840.0,104830.0,0.50810733]
[1737701109941,0.05548675,104840.0,104830.0,0.38670733]
[1737701110167,0.05548675,104840.0,104830.0,0.38270733]
[1737701110381,0.13738675,104840.0,104830.0,0.37333991]
[1737701110585,0.13738675,104840.0,104830.0,0.37733991]
[1737701110799,0.13738675,104840.0,104830.0,0.22333991]
[1737701111242,0.13738675,104840.0,104830.0,0.22733991]
[1737701111499,0.05548675,104840.0,104830.0,0.22733991]
[1737701111735,0.05548675,104840.0,104830.0,0.22633991]
[1737701111987,0.05548675,104840.0,104830.0,0.22733991]
[1737701112417,0.05548675,104840.0,104830.0,0.22633991]
[1737701112878,0.05548675,104840.0,104830.0,0.22733991]
[1737701113091,0.05548675,104840.0,104830.0,0.35473991]
[1737701113725,0.05578517,104840.0,104830.0,0.35473991]
[1737701115354,0.05578517,104840.0,104830.0,0.30593991]
[1737701115572,0.05578517,104840.0,104830.0,0.22733991]
[1737701118596,0.40523481,104840.0,104830.0,0.19773929]
[1737701118802,0.40523481,104840.0,104830.0,0.10234729]
[1737701119002,0.40523481,104840.0,104830.0,0.005]
[1737701119692,0.30046817,104840.0,104830.0,0.004]
[1737701119922,0.40523481,104840.0,104830.0,0.001]
[1737701120228,0.59600881,104840.0,104830.0,0.005]
[1737701120453,0.59600881,104840.0,104830.0,0.001]
[1737701120861,0.59600881,104840.0,104830.0,0.005]
[1737701121536,0.59600881,104840.0,104830.0,0.004]
[1737701121856,0.59600881,104840.0,104830.0,0.005]
[1737701122487,0.92330881,104840.0,104830.0,0.001]
[1737701122699,0.92330881,104840.0,104820.0,0.2863441]
[1737701122857,0.92330881,104840.0,104830.0,0.001]
[1737701123467,0.81854217,104840.0,104830.0,0.001]
[1737701123674,0.81854217,104840.0,104820.0,0.66014164]
[1737701123852,0.81854217,104840.0,104820.0,0.66414164]
[1737701124072,0.81854217,104840.0,104820.0,0.56874764]
[1737701124265,0.62776817,104840.0,104830.0,0.095392]
[1737701125357,0.73253481,104840.0,104830.0,0.096392]
[1737701125554,0.73253481,104840.0,104830.0,0.001]
[1737701127219,0.63715181,104840.0,104830.0,0.096392]
[1737701127446,0.38308517,104840.0,104830.0,0.19373929]
[1737701127679,0.05578517,104840.0,104830.0,0.19373929]
[1737701128103,0.05578517,104840.0,104830.0,0.19273929]
[1737701128335,0.05578517,104840.0,104830.0,0.22244533]
[1737701128542,0.05578517,104840.0,104830.0,0.22744533]
[1737701128725,0.05578517,104840.0,104830.0,0.22344533]
[1737701128930,0.05578517,104840.0,104830.0,0.22244533]
[1737701129163,0.05578517,104840.0,104830.0,0.22644533]
[1737701129385,0.05578517,104840.0,104830.0,0.22744533]
[1737701130252,0.05726517,104840.0,104830.0,0.22744533]
[1737701132669,0.00029842,104850.0,104840.0,0.173383]
[1737701132901,0.00044659,104850.0,104840.0,0.34873633]
[1737701133324,0.00044659,104850.0,104840.0,0.35873633]
[1737701133971,0.00044659,104850.0,104840.0,0.34873633]
[1737701135295,0.00044659,104850.0,104840.0,0.35373633]
[1737701135524,0.00044659,104850.0,104840.0,0.36373633]
[1737701135766,0.00044659,104850.0,104840.0,0.35373633]
[1737701136013,0.00044659,104850.0,104840.0,0.36373633]
[1737701136832,0.00035891,104850.0,104840.0,0.36373633]
[1737701137498,0.00035891,104850.0,104840.0,0.68673633]
[1737701138349,9.1e-07,104850.0,104840.0,0.68673633]
[1737701139186,9.1e-07,104850.0,104840.0,0.68573633]
[1737701139352,9.1e-07,104850.0,104840.0,0.68273633]
[1737701139798,9.1e-07,104850.0,104840.0,0.68673633]
[1737701140366,9.1e-07,104850.0,104840.0,0.70673633]
[1737701141179,9.1e-07,104850.0,104840.0,1.10573633]
[1737701141565,9.1e-07,104850.0,104840.0,1.10273633]
[1737701142654,9.1e-07,104850.0,104840.0,1.10673633]
[1737701143311,9.1e-07,104850.0,104840.0,1.10273633]
[1737701143520,9.1e-07,104850.0,104840.0,1.08273633]
[1737701143727,9.1e-07,104850.0,104840.0,1.10573633]
[1737701144157,9.1e-07,104850.0,104840.0,1.10673633]
[1737701146050,9.1e-07,104850.0,104840.0,1.11793633]
[1737701148492,1.2e-07,104850.0,104840.0,1.11793633]
[1737701149305,1.2e-07,104850.0,104840.0,1.65803633]
[1737701149936,1.2e-07,104850.0,104840.0,1.65303633]
[1737701150144,1.2e-07,104850.0,104840.0,1.65703633]
[1737701150351,1.2e-07,104850.0,104840.0,1.65803633]
[1737701152900,1.2e-07,104850.0,104840.0,1.75853633]
[1737701153110,1.2e-07,104850.0,104840.0,1.65803633]
[1737701153524,1.2e-07,104850.0,104840.0,2.13492633]
[1737701154794,5.4e-07,104860.0,104850.0,0.635974]
[1737701154996,7.2e-07,104860.0,104850.0,1.55755703]
[1737701155203,7.2e-07,104860.0,104850.0,1.58726307]
[1737701156262,7.2e-07,104860.0,104850.0,1.59126307]
[1737701156472,7.2e-07,104860.0,104850.0,1.59226307]
[1737701156919,7.2e-07,104860.0,104850.0,1.59126307]
[1737701157361,7.2e-07,104860.0,104850.0,1.59226307]
[1737701158240,7.2e-07,104860.0,104850.0,2.45536307]
[1737701159869,1.4e-07,104870.0,104860.0,0.505365]
[1737701160080,0.00029842,104880.0,104870.0,0.0877]
[1737701160266,0.00029842,104880.0,104870.0,0.60776903]
[1737701160468,0.00029842,104880.0,104870.0,0.63747507]
[1737701162754,0.00029842,104880.0,104870.0,0.63847507]
[1737701162958,0.00029842,104880.0,104870.0,0.64247507]
[1737701163161,0.00029842,104880.0,104870.0,1.11925507]
[1737701164416,0.00029842,104880.0,104870.0,1.12888242]
[1737701166658,0.00029842,104880.0,104870.0,1.14808535]
[1737701168151,4.2e-07,104880.0,104870.0,1.16808535]
[1737701168406,0.00029842,104900.0,104890.0,0.095337]
[1737701168643,0.00079217,104900.0,104890.0,0.23359033]
[1737701169708,0.00079217,104900.0,104890.0,0.23859033]
[1737701170836,0.00079217,104900.0,104890.0,0.38859033]
[1737701173192,0.00079217,104900.0,104890.0,0.39797972]
[1737701175956,0.00079217,104900.0,104890.0,0.41674389]
[1737701176172,0.00079217,104900.0,104890.0,0.49644389]
[1737701176673,0.00079217,104900.0,104890.0,0.54154389]
[1737701176921,0.00079217,104900.0,104890.0,0.53754389]
[1737701177153,0.00079217,104900.0,104890.0,0.54154389]
[1737701178122,0.00079217,104900.0,104890.0,0.54054389]
[1737701178337,0.00079217,104900.0,104890.0,0.49644389]
[1737701182445,0.00079217,104900.0,104890.0,0.49652389]
[1737701183584,0.07469059,104920.0,104910.0,0.095319]
[1737701183761,0.07483868,104920.0,104910.0,0.34266629]
[1737701183996,0.07483868,104920.0,104910.0,0.37234262]
[1737701184242,0.07483868,104920.0,104910.0,0.34266629]
[1737701184676,0.07483868,104920.0,104910.0,0.37634566]
[1737701184911,0.07483868,104920.0,104910.0,0.34666629]
[1737701185158,0.00014809,104920.0,104910.0,0.37634554]
[1737701185355,0.00014809,104920.0,104910.0,0.37734554]
[1737701186321,0.00014809,104920.0,104910.0,0.34766629]
[1737701186545,0.08124809,104920.0,104910.0,0.34766629]
[1737701188265,0.08574201,104920.0,104910.0,0.34766629]
[1737701188518,0.08574201,104920.0,104910.0,0.37735726]
[1737701190048,0.00464201,104920.0,104910.0,0.37735726]
[1737701190871,0.00464201,104920.0,104910.0,0.46275253]
[1737701191410,0.08294201,104920.0,104910.0,0.46275253]
[1737701192964,0.13244201,104920.0,104910.0,0.21743353]
[1737701193175,0.33251865,104920.0,104910.0,0.09039527]
[1737701193382,0.22775201,104920.0,104910.0,0.09039527]
[1737701193777,0.22775201,104920.0,104910.0,0.23939527]
[1737701193991,0.22775201,104920.0,104910.0,0.23539527]
[1737701194199,0.22775201,104920.0,104910.0,0.33171427]
[1737701194402,0.13244201,104920.0,104910.0,0.33571427]
[1737701194611,0.13244201,104920.0,104910.0,0.43306156]
[1737701195814,0.12744201,104920.0,104910.0,0.43306156]
[1737701196159,0.12774001,104920.0,104910.0,0.43320346]
[1737701196595,0.12774001,104920.0,104910.0,0.4629337]
[1737701196811,0.12774001,104920.0,104910.0,0.43320346]
[1737701197025,0.12774001,104920.0,104910.0,0.46293341]
[1737701199049,0.12774001,104920.0,104910.0,0.43320346]
[1737701199254,0.32781665,104920.0,104910.0,0.24053717]
[1737701199470,0.12774001,104920.0,104910.0,0.33788446]
[1737701199809,0.12774001,104920.0,104910.0,0.43320346]
[1737701200256,0.12774001,104920.0,104910.0,0.46294028]
[1737701203111,0.12774001,104920.0,104910.0,0.45794028]
[1737701203287,0.049798,104920.0,104910.0,0.45794028]
[1737701203492,0.049798,104920.0,104910.0,0.46294028]
[1737701203691,0.049798,104920.0,104910.0,0.45894028]
[1737701203894,0.049798,104920.0,104910.0,0.45794028]
[1737701204114,0.000298,104920.0,104910.0,0.46294028]
[1737701204515,0.000298,104920.0,104910.0,0.46694028]
[1737701207056,0.000298,104920.0,104910.0,0.38154501]
[1737701209840,0.000298,104920.0,104910.0,0.37254501]
[1737701210080,0.000298,104920.0,104910.0,0.37354501]
[1737701210336,0.000298,104920.0,104910.0,0.37754501]
[1737701210566,0.000298,104920.0,104910.0,0.37254501]
[1737701210772,0.000298,104920.0,104910.0,0.37754501]
[1737701211403,0.000298,104920.0,104910.0,0.34780819]
[1737701218644,0.000298,104920.0,104910.0,0.37755143]
[1737701237160,0.3551471,104920.0,104910.0,0.0051419]
[1737701237574,0.42381665,104920.0,104910.0,0.0051419]
[1737701237748,0.3551471,104920.0,104910.0,0.0051419]
[1737701238174,0.28647755,104920.0,104910.0,0.1551419]
[1737701238736,0.28647755,104920.0,104910.0,0.1541419]
[1737701238938,0.28647755,104920.0,104910.0,0.1551419]
[1737701239148,0.28647755,104920.0,104910.0,0.1511419]
[1737701239362,0.28647755,104920.0,104910.0,0.1551419]
[1737701239775,0.19116755,104920.0,104910.0,0.2504609]
[1737701239989,0.000298,104920.0,104910.0,0.2514609]
[1737701240194,0.000298,104920.0,104910.0,0.2504609]
[1737701240612,0.06896755,104920.0,104910.0,0.2504609]
[1737701240995,0.06896755,104920.0,104910.0,0.1551419]
[1737701241201,0.06896755,104920.0,104910.0,0.2504609]
[1737701241417,0.16427755,104920.0,104910.0,0.1551419]
[1737701242155,0.2793471,104920.0,104910.0,0.1551419]
[1737701243347,0.2793471,104920.0,104910.0,0.2408112]
[1737701244373,0.3557471,104920.0,104910.0,0.0908112]
[1737701245702,0.47609439,104920.0,104910.0,0.0908112]
[1737701246835,0.47609439,104920.0,104910.0,0.0051419]
[1737701247061,0.48609439,104920.0,104910.0,0.0001419]
[1737701247422,0.47609439,104920.0,104910.0,0.0001419]
[1737701247629,0.48609439,104920.0,104910.0,0.0001419]
[1737701248029,0.47609439,104920.0,104910.0,0.0001419]
[1737701251000,0.55476394,104920.0,104910.0,0.0001419]
[1737701251410,0.48609439,104920.0,104910.0,0.0001419]
[1737701252801,0.50472659,104920.0,104910.0,0.0001419]
[1737701252981,0.47609439,104920.0,104910.0,0.0001419]
[1737701253998,0.3557471,104920.0,104910.0,0.0001419]
[1737701259916,0.2793471,104920.0,104910.0,0.0001419]
[1737701260122,0.16427755,104920.0,104910.0,0.0001419]
[1737701260255,0.16427755,104920.0,104910.0,0.2309419]
[1737701261311,0.2329471,104920.0,104910.0,0.2309419]
[1737701261508,0.2329471,104920.0,104910.0,0.1501419]
[1737701273558,0.16427755,104920.0,104910.0,0.1501419]
[1737701274159,0.16427755,104920.0,104910.0,0.2307419]
[1737701280736,0.16427755,104920.0,104910.0,0.3260609]
[1737701282121,0.16427755,104920.0,104910.0,0.2307419]
[1737701282416,0.16427755,104920.0,104910.0,0.3260609]
[1737701283224,0.06896755,104920.0,104910.0,0.3260609]
[1737701283882,0.000298,104920.0,104910.0,0.3260609]
[1737701284797,0.06896755,104920.0,104910.0,0.3260609]
[1737701287513,0.000298,104920.0,104910.0,0.3260609]
[1737701289643,0.000298,104920.0,104910.0,0.47240819]
[1737701289844,0.000298,104920.0,104910.0,0.55807749]
[1737701290917,0.000298,104920.0,104910.0,0.4607302]
[1737701291126,0.06896755,104920.0,104910.0,0.4607302]
[1737701291762,0.06896755,104920.0,104910.0,0.4617302]
[1737701291971,0.000298,104920.0,104910.0,0.4617302]
[1737701294536,0.06896755,104920.0,104910.0,0.4617302]
[1737701295817,0.000298,104920.0,104910.0,0.4617302]
[1737701296220,0.06896755,104920.0,104910.0,0.4617302]
[1737701296441,0.000298,104920.0,104910.0,0.4617302]
[1737701297958,0.000298,104920.0,104910.0,0.55907749]
[1737701312959,0.000298,104920.0,104910.0,0.58881364]
[1737701313954,0.000298,104920.0,104910.0,0.58781364]
[1737701314160,0.000298,104920.0,104910.0,0.58881364]
[1737701314360,0.000298,104920.0,104910.0,0.59281364]
[1737701315367,0.000298,104920.0,104910.0,0.59181364]
[1737701315573,0.000298,104920.0,104910.0,0.59281364]
[1737701317156,0.000298,104920.0,104910.0,0.50714434]
[1737701322502,0.000298,104920.0,104910.0,0.47740819]
[1737701322741,0.000298,104920.0,104910.0,0.50716145]
[1737701323230,0.000298,104920.0,104910.0,0.47740819]
[1737701326044,0.000298,104920.0,104910.0,0.50716477]
[1737701328558,0.000298,104920.0,104910.0,0.50616477]
[1737701328922,0.000298,104920.0,104910.0,0.50716477]
[1737701329818,0.000298,104920.0,104910.0,0.50316477]
[1737701330019,0.000298,104920.0,104910.0,0.50716477]
[1737701330167,0.000298,104920.0,104910.0,0.51663911]
[1737701330367,0.000298,104920.0,104910.0,0.50716477]
[1737701339919,0.000298,104920.0,104910.0,0.52578416]
[1737701340792,0.000298,104920.0,104910.0,0.54878416]
[1737701343270,0.000298,104920.0,104910.0,0.54378416]
[1737701343691,0.000298,104920.0,104910.0,0.54478416]
[1737701343893,1e-06,104920.0,104910.0,0.55040541]
[1737701344094,1e-06,104920.0,104910.0,0.54778416]
[1737701344517,1e-06,104920.0,104910.0,0.54878416]
[1737701346779,1e-06,104920.0,104910.0,0.54378416]
[1737701347078,1e-06,104920.0,104910.0,0.54478416]
[1737701347283,1e-06,104920.0,104910.0,0.54878416]
[1737701347618,1e-06,104920.0,104910.0,0.55178416]
[1737701347824,1e-06,104920.0,104910.0,0.55278416]
[1737701349578,1e-06,104920.0,104910.0,0.97278416]
[1737701351974,1e-06,104920.0,104910.0,0.96478416]
[1737701352361,1e-06,104920.0,104910.0,0.96778416]
[1737701352826,1e-06,104920.0,104910.0,0.96878416]
[1737701354378,1e-06,104920.0,104910.0,1.44536416]
[1737701358859,0.12480368,104970.0,104960.0,0.15]
[1737701359176,0.12495172,104970.0,104960.0,0.34262129]
[1737701359675,0.12473239,104970.0,104960.0,0.34262129]
[1737701360100,0.12444804,104970.0,104960.0,0.34362129]
[1737701360303,0.12444804,104970.0,104960.0,0.34762129]
[1737701366057,0.12434618,104970.0,104960.0,0.34762129]
[1737701368141,0.1246446,104970.0,104960.0,0.34762129]
[1737701369837,0.19331415,104970.0,104960.0,0.250274]
[1737701370058,0.1246446,104970.0,104960.0,0.250274]
[1737701371099,0.1246446,104970.0,104960.0,0.34762129]
[1737701372535,0.04664646,104970.0,104960.0,0.34762129]
[1737701372840,0.00044646,104970.0,104960.0,0.34762129]
[1737701374350,0.00044646,104970.0,104960.0,0.37731732]
[1737701375851,0.00524598,104970.0,104960.0,0.45891732]
[1737701377423,0.00524598,104970.0,104960.0,0.54417093]
[1737701379616,0.00524598,104970.0,104960.0,0.54431293]
[1737701380423,0.00524598,104970.0,104960.0,0.54331293]
[1737701380819,0.00524598,104970.0,104960.0,0.45905932]
[1737701381026,0.00524598,104970.0,104960.0,0.45505932]
[1737701381161,0.00524598,104970.0,104960.0,0.45905932]
[1737701383341,0.00524598,104970.0,104960.0,0.46881388]
[1737701390083,0.00524598,104970.0,104960.0,0.38721388]
[1737701390236,0.00524598,104970.0,104960.0,0.35751785]
[1737701391632,0.00524598,104970.0,104960.0,0.38722667]
[1737701392693,0.00524598,104970.0,104960.0,0.22747211]
[1737701392901,0.08714598,104970.0,104960.0,0.19776329]
[1737701393101,0.47429737,104970.0,104960.0,0.005142]
[1737701393367,0.46429737,104970.0,104960.0,0.004142]
[1737701393496,0.46429737,104970.0,104960.0,0.000142]
[1737701393700,0.095303,104930.0,104910.0,0.4767089]
[1737701393936,0.48207555,104930.0,104910.0,0.57405619]
[1737701394139,0.00544313,104920.0,104910.0,0.38343419]
[1737701394546,0.00544313,104920.0,104910.0,0.53343419]
[1737701394760,0.00544313,104920.0,104910.0,0.38343419]
[1737701394969,0.00544313,104920.0,104910.0,0.39651772]
[1737701395288,0.00544313,104920.0,104910.0,0.54651772]
[1737701395722,0.0786,104940.0,104930.0,0.095301]
[1737701396332,0.1255,104950.0,104940.0,0.245292]
[1737701397793,0.0806,104960.0,104950.0,0.245283]
[1737701398002,0.08074801,104960.0,104950.0,0.245283]
[1737701398996,0.00014801,104960.0,104950.0,0.245283]
[1737701399442,0.00014801,104960.0,104950.0,0.34263029]
[1737701401011,0.00014801,104960.0,104950.0,0.3516939]
[1737701403502,0.00014801,104960.0,104950.0,0.351836]
[1737701404026,0.005704,104960.0,104950.0,0.351836]
[1737701412385,0.005704,104960.0,104950.0,0.34277239]
[1737701412911,0.005704,104960.0,104950.0,0.351837]
[1737701415030,0.00600242,104960.0,104950.0,0.351837]
[1737701415744,0.07463183,104960.0,104950.0,0.351837]
[1737701417309,0.24853524,104960.0,104950.0,0.15920671]
[1737701417504,0.32393524,104960.0,104950.0,0.15920671]
[1737701417858,0.41128253,104960.0,104950.0,0.00920671]
[1737701419660,0.37863287,104960.0,104950.0,0.00920671]
[1737701419901,0.37863287,104960.0,104950.0,0.0001421]
[1737701423093,0.42593287,104960.0,104950.0,0.0001421]
[1737701425734,0.43550994,104960.0,104950.0,0.0001421]
[1737701431567,0.45850994,104960.0,104950.0,0.0001421]
[1737701431769,0.5831191,104960.0,104950.0,0.0001421]
[1737701431971,0.47850994,104960.0,104950.0,0.0001421]
[1737701432373,0.47641161,104960.0,104950.0,0.0001421]
[1737701432947,0.57671161,104960.0,104950.0,0.0001421]
[1737701433918,0.45341161,104960.0,104950.0,0.0001421]
[1737701434100,0.45541161,104960.0,104950.0,0.0011421]
[1737701434304,0.45641161,104960.0,104950.0,0.0011421]
[1737701434812,0.43641161,104960.0,104950.0,0.0011421]
[1737701435038,0.45641161,104960.0,104950.0,0.0011421]
[1737701442748,0.58402077,104960.0,104950.0,0.0011421]
[1737701442961,0.58402077,104960.0,104950.0,0.01021998]
[1737701443956,0.47941161,104960.0,104950.0,0.01021998]
[1737701444162,0.58402077,104960.0,104950.0,0.01021998]
[1737701444343,0.58402077,104960.0,104950.0,0.0011421]
[1737701445332,0.68432077,104960.0,104950.0,0.0011421]
[1737701447632,0.57971161,104960.0,104950.0,0.0011421]
[1737701448148,0.47941161,104960.0,104950.0,0.0011421]
[1737701448505,0.58402077,104960.0,104950.0,0.0011421]
[1737701453517,0.56402077,104960.0,104950.0,0.0011421]
[1737701453726,0.58402077,104960.0,104950.0,0.0011421]
[1737701457830,0.58086015,104960.0,104950.0,0.0011421]
[1737701458339,0.68116015,104960.0,104950.0,0.0011421]
[1737701460101,0.66116015,104960.0,104950.0,0.0011421]
[1737701468967,0.095292,104940.0,104930.0,0.0777]
[1737701469194,0.26477485,104940.0,104930.0,0.08679928]
[1737701470137,0.26677485,104940.0,104930.0,0.23679928]
[1737701472473,0.33546075,104940.0,104930.0,0.23679928]
[1737701472818,0.33546075,104940.0,104930.0,0.23694138]
[1737701475842,0.40414665,104940.0,104930.0,0.23694138]
[1737701476762,0.41369711,104940.0,104930.0,0.23694138]
[1737701477696,0.53699711,104940.0,104930.0,0.23694138]
[1737701477880,0.55699711,104940.0,104930.0,0.23694138]
[1737701479010,0.55699711,104940.0,104930.0,0.2278421]
[1737701479906,0.57614759,104940.0,104930.0,0.2278421]
[1737701481074,0.57614759,104940.0,104930.0,0.1501421]
[1737701481986,0.67349488,104940.0,104930.0,0.1501421]
[1737701482188,0.74889488,104940.0,104930.0,0.0001421]
[1737701482431,0.65154759,104940.0,104930.0,0.0001421]
[1737701482788,0.65054759,104940.0,104930.0,0.0001421]
[1737701483231,0.65354759,104940.0,104930.0,0.0011421]
[1737701483547,0.65254759,104940.0,104930.0,0.0011421]
[1737701483700,0.65454759,104940.0,104930.0,0.0011421]
[1737701486002,1.62649488,104940.0,104930.0,0.0011421]
[1737701489582,0.238601,104930.0,104920.0,0.15]
[1737701489810,0.23861,104920.0,104910.0,0.0793419]
[1737701490016,0.23861,104920.0,104900.0,0.076]
[1737701490017,0.545919,104910.0,104900.0,0.076]
[1737701490171,1.04339943,104910.0,104900.0,0.076]
[1737701490391,0.97471353,104910.0,104900.0,0.076]
[1737701490596,0.97471353,104910.0,104900.0,0.226]
[1737701491040,0.97471353,104910.0,104900.0,0.22614809]
[1737701492131,0.97571353,104910.0,104900.0,0.22614809]
[1737701492333,0.93783384,104910.0,104900.0,0.22614809]